Workbook

Sheet Berechnung
B2: MI Management und Informatik AG | G2: Berechnungsdatum: | I2: =TODAY() -> 2023-12-08
B3: Version 1.2
B5: Vorsorgecheck für | E5: Fritz und Maria Muster | H5: Partner 1: | I5: Will sich vorzeitig pensionieren lassen
E6: 4000 Beispiel | H6: Partner 2: | I6: z.B. Lebenspartner
B8: Angaben zu Partner 1:
G9: Jahre | H9: Monate
B10: Aktuelles Alter | G10: 52 | H10: 6 | I10: =G10+H10/12 -> 52.5
B11: Ordentliche Pensionierung im Alter | F11: Ganze Jahre | G11: 65
B12: Vorzeitige Pensionierung im Alter | G12: 62 | H12: 0 | I12: =G11-(G12+H12/12) -> 3
B13: Individuelle Lebenserwartung | F13: Ganze Jahre | G13: 95 | I13: =IF(G13<=(G11-I12),0,MIN(G11-I10,I12,G13-I10,G13-(G11-I12))) -> 3
B14: Zinssatz bzw. Rendite des Kapitalstocks | F14: % | G14: 1
G16: Beträge nach | H16: Beträge vor
G17: ordentl. | H17: ordentl.
G18: Pensionierung: | H18: Pensionierung:
B20: Gewünschtes Gesamt-Einkommen im Alter | F20: pro Jahr | G20: 84000 | H20: 84000
B22: Staatl. Altersrente (AHV) (Schweiz z.Zt.: min. 14'700, max. 29'400)
C23: Partner 1 | D23: Jahresrente | G23: 29400 | H23: 0
C24: Partner 2 | D24: Jahresrente | G24: 14700 | H24: 1000
B26: Pensionskassen-Rente (siehe persönlicher Ausweis und Reduktion gemäss Reglement)
C27: Partner 1 | D27: Basisrente pro Jahr | F27: 24000
D28: Kaderrente pro Jahr | F28: 6000 | G28: =(F27+F28) -> 30000 | H28: =IF(I13>0,F27+F28,0) -> 30000
C30: Partner 2 | D30: Basisrente pro Jahr | F30: 3000
D31: Kaderrente pro Jahr | F31: 0 | G31: =(F30+F31) -> 3000
B33: Private Leibrente
C34: Partner 1 | D34: Jahresrente | G34: 1000
C35: Partner 2 | D35: Jahresrente
B37: Renten-Total | D37: pro Jahr | G37: =SUM(G23,G24,G28,G31,G34,G35) -> 78100 | H37: =SUM(H23,H24,H28,H30,H31,H34,H35) -> 31000
B39: Differenz zum gewünschten Einkommen | G39: =G20-G37 -> 5900 | H39: =H20-H37 -> 53000
B41: Notwendiger Kapitalstock zur Finanzierung bis Lebensende (unverzinst) | G41: =IF(G13<=I10,0,IF(G13<=G11,0,G39*(G13-MAX(I10,G11)))) -> 177000 | H41: =IF(I13<=0,0,H39*I13) -> 159000
B42: Notwendiger Kapitalstock zur Finanzierung bis Lebensende (verzinst) | G42: =PV(G14/100,IF(G13<=I10,0,IF(G13<=G11,0,G13-MAX(I10,G11))),-G39,0,1) -> 153788.1333 | H42: =IF(I13<=0,0,PV(G14/100,I13,-H39,0,1)) -> 157430.9381
B44: Nebeneinkommen nach vorzeitiger
B45: Pensionierung (kapitalisiert) | H45: 30000
B47: Vermögenswerte | E47: Betrag | F47: Zinssatz bis | I47: Davon verfügbar vor
B48: Partner 1 | E48: heute | F48: ord. Pensionierung | I48: ordentl. Pensionierung
B49: Kapital aus Pensionskasse | E49: 20000 | F49: 1.75 | G49: % | I49: 20000
B50: Freizügigkeitskapital | G50: %
B51: Kapital Gebundene Vorsorge | E51: 100000 | F51: 0.75 | G51: % | I51: 100000
B52: Kapital Gebundene Lebensversicherung | G52: %
B53: Kapital Freie Lebensversicherung | E53: 50000 | G53: %
B54: Sparkapital | E54: 50000 | F54: 0.5 | G54: %
B55: Obligationen | G55: %
B56: Aktien | E56: 2000 | F56: 2 | G56: %
B57: Andere Vermögenswerte | E57: 3000 | F57: 0.5 | G57: %
B58: ./. Hypothekarschulden | E58: 100000 | H58: ./.
B59: ./. Andere Schulden | G59: =IF(I10>=G11,E49,FV(F49/100,G11-I10,0,-E49))-IF(I13<=0,0,(FV(F49/100,I13,0,-I49)-I49)/2)+IF(I10>=G11,E50,FV(F50/100,G11-I10,0,-E50))-IF(I13<=0,0,(FV(F50/100,I13,0,-I50)-I50)/2)+IF(I10>=G11,E51,FV(F51/100,G11-I10,0,-E51))-IF(I13<=0,0,(FV(F51/100,I13,0,-I51)-I51)/2)+IF(I10>=G11,E52,FV(F52/100,G11-I10,0,-E52))-IF(I13<=0,0,(FV(F52/100,I13,0,-I52)-I52)/2)+IF(I10>=G11,E53,FV(F53/100,G11-I10,0,-E53))-IF(I13<=0,0,(FV(F53/100,I13,0,-I53)-I53)/2)+IF(I10>=G11,E54,FV(F54/100,G11-I10,0,-E54))-IF(I13<=0,0,(FV(F54/100,I13,0,-I54)-I54)/2)+IF(I10>=G11,E55,FV(F55/100,G11-I10,0,-E55))-IF(I13<=0,0,(FV(F55/100,I13,0,-I55)-I55)/2)+IF(I10>=G11,E56,FV(F56/100,G11-I10,0,-E56))-IF(I13<=0,0,(FV(F56/100,I13,0,-I56)-I56)/2)+IF(I10>=G11,E57,FV(F57/100,G11-I10,0,-E57))-IF(I13<=0,0,(FV(F57/100,I13,0,-I57)-I57)/2)-E58-E59 -> 141936.8988 | H59: ./.
B61: Partner 2
B62: Kapital aus Pensionskasse | G62: %
B63: Freizügigkeitskapital | E63: 30000 | F63: 0.75 | G63: %
B64: Kapital Gebundene Vorsorge | G64: %
B65: Kapital Gebundene Lebensversicherung | E65: 30000 | G65: %
B66: Kapital Freie Lebensversicherung | G66: %
B67: Sparkapital | E67: 10000 | F67: 0.5 | G67: %
B68: Obligationen | E68: 10000 | G68: %
B69: Aktien | G69: %
B70: Andere Vermögenswerte | G70: %
B71: ./. Hypothekarschulden | H71: ./.
B72: ./. Andere Schulden | G72: =IF(I10>=G11,E62,FV(F62/100,G11-I10,0,-E62))-IF(I13<=0,0,(FV(F62/100,I13,0,-I62)-I62)/2)+IF(I10>=G11,E63,FV(F63/100,G11-I10,0,-E63))-IF(I13<=0,0,(FV(F63/100,I13,0,-I63)-I63)/2)+IF(I10>=G11,E64,FV(F64/100,G11-I10,0,-E64))-IF(I13<=0,0,(FV(F64/100,I13,0,-I64)-I64)/2)+IF(I10>=G11,E65,FV(F65/100,G11-I10,0,-E65))-IF(I13<=0,0,(FV(F65/100,I13,0,-I65)-I65)/2)+IF(I10>=G11,E66,FV(F66/100,G11-I10,0,-E66))-IF(I13<=0,0,(FV(F66/100,I13,0,-I66)-I66)/2)+IF(I10>=G11,E67,FV(F67/100,G11-I10,0,-E67))-IF(I13<=0,0,(FV(F67/100,I13,0,-I67)-I67)/2)+IF(I10>=G11,E68,FV(F68/100,G11-I10,0,-E68))-IF(I13<=0,0,(FV(F68/100,I13,0,-I68)-I68)/2)+IF(I10>=G11,E69,FV(F69/100,G11-I10,0,-E69))-IF(I13<=0,0,(FV(F69/100,I13,0,-I69)-I69)/2)+IF(I10>=G11,E70,FV(F70/100,G11-I10,0,-E70))-IF(I13<=0,0,(FV(F70/100,I13,0,-I70)-I70)/2)-E71-E72 -> 83580.31731 | H72: ./.
C74: Finanzierung vorzeitige Pensionierung | G74: =-H74 -> -127430.9381 | H74: =IF(H42=0,0,H42-H45) -> 127430.9381
B76: Total Vermögenswerte - Verwendung nach ordentl. Pensionierung | G76: =SUM(G45,G59,G72,G74) -> 98086.27793
C77: - für Finanzierung der vorzeitigen Pensionierung | H77: =H74 -> 127430.9381 | I77: =SUM(I49:I57)-I58-I59+SUM(I62:I70)-I71-I72 -> 120000
B79: Zusätzlicher Verbrauch pro Jahr | G79: =IF(G42=0,0,(G76-G42)/IF(I10>G11,G13-I10,G13-G11)) -> -1856.728512 | H79: 0
B81: Verfügbares Einkommen pro Jahr | G81: =IF(G13<=I10,0,IF(G13<=G11,0,G20+G79)) -> 82143.27149 | H81: =IF(I13>0,H37+(H41-H45)/I13+H45/I13,0) -> 84000
B83: Erforderlicher Sparbetrag - pro Jahr | G83: =IF(G13<=I10,0,PMT(G14/100,ROUND(IF(G11-IF(I13>0,I13,0)-I10>=2,G11-IF(I13>0,I13,0)-I10,0),0),0,-(G42-G76),0)) -> 5324.099003 | H83: =IF(G13<=I10,0,ROUND(IF(G11-IF(I13>0,I13,0)-I10>=2,G11-IF(I13>0,I13,0)-I10,0),0)) -> 10 | I83: Raten
B84: - einmalig | G84: =IF(G13<=I10,0,IF(MIN(G11,G13)-I13-I10<2,G42-G76,0)) -> 0
B86: Wenn das Resultat negativ ist, dann haben Sie Ihr Einkommensziel für das Alter schon erreicht!
B89: Copyright © 2000 by MI AG | D89: Stand 1.1.2024

Sheet Kommentar
B2: MI Management und Informatik AG | I2: Version 1.2
B6: Erläuterungen Vorsorgecheck
B9: Das Programm Vorsorgecheck berechnet den erforderlichen jährlichen, individuell zu erbringenden Sparbetrag
B10: zur Finanzierung einer vorzeitigen Pensionierung.
B12: Einzugeben ist das aktuelle Alter, sowie das Alter, in dem die ordentliche Pensionierung erfolgen würde, und
B13: das Alter der vorzeitigen Pensionierung.
B15: Wichtig ist die Eingabe der individuellen Lebenserwartung. Sie dient zur Berechnung des eventuell not-
B16: wendigen Vermögensverzehrs während der Pensionierungszeit. Sie soll nicht zu tief angesetzt werden, damit
B17: das Vermögen nicht zu früh aufgebraucht sein wird.
B19: Zu erfassen sind alle Renteneinkommen, die erwartete Summe des Einkommens nach der vorzeitigen oder
B20: nach der Zeit der ordentlichen Pensionierung und das vorhandene Vermögen.
B22: Die Berechnung kann auch nach bereits erfolgter vorzeitiger Pensionierung, oder nach der ordentlichen
B23: Pensionierung gemacht werden. Der dann ausgewiesene " Erforderliche Sparbetrag - einmalig", zeigt in
B24: diesem Fall, ob das vorgegebene Einkommensziel übertroffen (= negativer Sparbetrag) oder, ob zusätzliche
B25: Mittel zur Finanzierung des Einkommensziels erforderlich wären (= positiver Sparbetrag).
B28: Partner 1 | E28: Person, die sich vorzeitig pensionieren lassen will, oder bereits
E29: pensioniert ist
B32: Partner 2 | E32: Soweit das Renteneinkommen und das Vermögen des Ehepartners
E33: oder z.B.des Konkubinatspartners zur Finanzierung des Ein-
E34: kommens nach der Pensionierung beiträgt (gemeinsamer Haushalt),
E35: ist dieses entsprechend anzugeben
E36: Die Berechnung kann auch aus Sicht des Partners 2 gemacht
E37: werden, oder es kann die erwartete Lebensdauer des Partners 2 in
E38: der Berechnung des Partners 1 berücksichtigt werden (d.h. es ist
E39: die Dauer des Partners mit der längeren Lebenserwartung
E40: einzusetzen)
B43: Individuelle Lebenserwartung | E43: Nach Ihrer eigenen Einschätzung. Nicht zu tief angeben, so dass bei
E44: der Berechnung des Kapitalbedarfs zur Finanzierung des Ein-
E45: kommens nach der Pensionierung eine gewisse Reserve resultiert.
E47: Hier können Sie Ihre Lebenserwartung berechnen:
E48: http://www.gesundheit.ch/test
B51: Zinssatz des Kapitalstocks | E51: Durchschnittlicher Nettoertrag aus dem Kapitalstock nach Abzug
E52: der Steuern nach der ordentlichen Pensionierung. Die Netto-
E53: performance bei Wertschriften-Anlagen ist entsprechend ihrem
E54: Anteil am Gesamtvermögen gewichtet einzurechnen
B57: AHV-Rente | E57: Setzen Sie Ihre voraussichtliche AHV-Rente ein, bzw. wenn schon
E58: pensioniert, Ihre aktuelle AHV-Rente
E60: Schweiz: Die ordentliche maximale AHV-Rente wird erreicht, wenn
E61: das mit dem Rentenindex aufgewertete durchschnittliche Jahres-
E62: einkommen zur Zeit CHF 85'320 erreicht und wenn Beiträge während
E63: der gleichen Anzahl Jahre wie der Jahrgang des Anspruchs-
E64: berechtigten einbezahlt wurden. Die maximale AHV-Rente beträgt
E65: CHF 28'440, die minimale AHV-Rente beträgt CHF 14'220, die
E66: maximale Ehepaarrente beträgt CHF 42'660 (Stand 1.1.2019)
E68: Wenn Ihr durchschnittliches aufgewertetes AHV-Einkommen unter
E69: CHF 85'320 liegen wird, machen Sie eine Schätzung Ihrer voraus-
E70: sichtlichen AHV-Rentenhöhe, z.B. bei
E71: AHV-ESCAL | F71: http://acor-avs.ch
E73: Deutschland und andere Länder: Für die Berechnung der Altersrente
E74: suchen Sie ein geeignetes Programm im Internet.
B82: Pensionskassen-Rente | E82: Die im persönlichen Ausweis vorgesehene Pensionskassen-Rente
E83: wird bei einer vorzeitigen Pensionierung meist gekürzt. Der Kür-
E84: zungsfaktor ist im Reglement aufgeführt. Eine eventuelle Übergangs-
E85: rente der Pensionskasse ist unter der AHV-Rente zu erfassen
B88: Zinssatz bis ordentliche Pensionierung
E89: Wie Zinssatz des Kapitalstocks (siehe oben), jedoch für jede
E90: Kapitalanlage separat
E92: Bei Lebensversicherungen ist die Erlebensfallsumme und der bereits
E93: gutgeschriebene Bonusbetrag bzw. Zinsgewinn einzusetzen
E94: Zinssatz = erwarteter Bonus oder Zinsgewinn pro künftiges Jahr
B97: Vermögenswerte | E97: Vermögensteile einsetzen, die zur Finanzierung des Einkommens-
E98: zieles während der Zeit der vorzeitigen und nach der ordentlichen
E99: Pensionierung verwendet werden können
B102: Hypothekarschulden | E102: Werden als Vermögensminderung gerechnet
B103: und | E103: Der Zins wird jedoch vor der vorzeitigen Pensionierung aus dem
B104: andere Schulden | E104: laufenden Einkommen bezahlt. Er wird somit hier nicht
E105: berücksichtigt
B108: Davon verfügbar vor ordentlicher | E108: Einsetzen, was zwecks Finanzierung der vorzeitigen Pensionierung
B109: Pensionierung | E109: vorher bezogen werden kann. Der Zinsertrag der betr. Kapitalanlage
E110: wird um den halben Zins des Vorbezugs reduziert, d.h. es ist der
E111: nur halbe Zinssatz zu setzen
B114: Verwendung nach ordentlicher | E114: Vermögensteil, der für die Finanzierung des Einkommens nach der
B115: Pensionierung | E115: ordentlichen Pensionierung erforderlich ist.
B118: Finanzierung der vorzeitigen | E118: Vermögensteil, der für die Finanzierung der vorzeitigen
B119: Pensionierung | E119: Pensionierung erforderlich ist
B122: Zusätzlicher Verbrauch pro Jahr | E122: Die eingegebene Einkommens- und Vermögenssituation bewirkt
E123: diesen zusätzlichen Verbrauch pro Jahr (positiv = das erforderliche
E124: Einkommen wird um diesen Betrag übertroffen, negativ = das
E125: erforderliche Einkommen wird um diesen Betrag unterschritten,
E126: siehe Erforderlicher Sparbetrag)
B129: Verfügbares Einkommen pro Jahr | E129: Die eingegebene Einkommens- und Vermögenssituation bewirkt
E130: dieses verfügbare Einkommen pro Jahr = Summe aus dem Renten-
E131: einkommen und dem zusätzlichen Verbrauch pro Jahr aus dem
E132: Vermögen
B135: Erforderlicher Sparbetrag - pro Jahr | E135: Jahrlicher Sparbetrag zur Finanzierung der vorzeitigen Pensionierung
E136: (Annuität); zu erbringen bis zum Ende des letzten Jahres vor der
E137: vorzeitigen Pensionierung (individuell zu erbringender Sparbetrag,
E138: ohne Beiträge in die Pensionskasse)
E139: Mit "Zinssatz Kapitalstock" gerechnet
E140: Wenn negativ: Vorzeitige Pensionierung ist bereits finanziert, d.h.
E141: es könnte ein jährlicher Vermögensabbau in dieser Höhe erfolgen
E142: ohne die Finanzierung der vorzeitigen Pensionierung zu gefährden
B145: Erforderlicher Sparbetrag - einmalig | E145: Einmalig zu erbringende Investition zur Finanzierung der bereits
E146: laufenden vorzeitigen oder ordentlichen Pensionierungsphase
E147: Wenn negativ: Vorzeitige und ordentliche Pensionierung ist bereits
E148: finanziert, d.h. es könnte ein Vermögensabbau in dieser Höhe
E149: erfolgen ohne die Finanzierung der vorzeitigen und/oder ordentlichen
E150: Pensionierung zu gefährden
B157: Copyright © 2000 by MI AG | D157: Stand 1.1.2019

Sheet Eig.Berechnungen 1
B2: Diese Seite ist nicht gesperrt
B4: Hier können Sie eigene Bereechnungen zu Ihrem Vorsorgecheck durchführen

Sheet Eig.Berechnungen 2
B2: Diese Seite ist nicht gesperrt
B4: Hier können Sie eigene Bereechnungen zu Ihrem Vorsorgecheck durchführen

Sheet Deckblatt
E14: V o r s o r g e c h e c k
E26: Dokumentation
C36: =TODAY() -> 2023-12-08 | F36: www.miag.ch
